bitfinex/quotes_SOLUSD_20240712
["timestamp","ask_amount","ask_price","bid_price","bid_amount"]
[1720742629844,28.94,136.41,136.4,55.34]
[1720742630344,28.94,136.41,136.4,45.34]
[1720742631129,36.2709,136.41,136.38,10.0]
[1720742631323,28.94,136.39,136.36,10.0]
[1720742631641,28.94,136.37,136.35,10.0]
[1720742632229,28.94,136.37,136.34,10.0]
[1720742632824,28.94,136.37,136.35,45.34]
[1720742633040,28.94,136.37,136.35,55.0]
[1720742633224,28.94,136.37,136.35,10.0]
[1720742634046,28.94,136.37,136.33,10.83780407]
[1720742634244,28.94,136.35,136.33,10.83780407]
[1720742635644,28.94,136.35,136.34,0.17]
[1720742635820,28.94,136.36,136.34,0.17]
[1720742636330,57.88,136.36,136.33,0.83780407]
[1720742636549,28.94,136.34,136.33,0.83780407]
[1720742637334,28.94,136.34,136.3,10.0]
[1720742637542,28.94,136.31,136.3,10.0]
[1720742638747,28.94,136.31,136.3,0.17]
[1720742638950,28.94,136.31,136.26,20.0]
[1720742639154,28.94,136.28,136.26,20.0]
[1720742640054,28.94,136.28,136.24,20.0]
[1720742640223,28.94,136.26,136.24,20.0]
[1720742640727,28.94,136.26,136.24,10.0]
[1720742641334,28.94,136.26,136.22,20.0]
[1720742641535,28.94,136.24,136.22,20.0]
[1720742642237,28.94,136.24,136.2,10.8546782]
[1720742642439,28.94,136.22,136.2,10.8546782]
[1720742644551,28.94,136.22,136.21,10.0]
[1720742645134,28.94,136.24,136.23,10.0]
[1720742645542,28.94,136.26,136.25,10.0]
[1720742645861,28.94,136.26,136.25,45.17]
[1720742646157,28.94,136.26,136.25,45.34]
[1720742647069,28.94,136.26,136.25,10.17]
[1720742647234,28.94,136.26,136.25,10.0]
[1720742647430,36.2789,136.26,136.21,10.0]
[1720742647731,28.94,136.29,136.21,10.0]
[1720742648050,28.94,136.22,136.21,20.0]
[1720742648557,28.94,136.23,136.21,20.0]
[1720742649331,28.94,136.23,136.21,10.0]
[1720742649530,20.0,136.22,136.21,10.0]
[1720742650041,20.0,136.22,136.2,0.8546782]
[1720742650234,28.94,136.21,136.2,0.8546782]
[1720742650840,56.2816,136.21,136.2,0.8546782]
[1720742652640,48.94,136.21,136.2,0.8546782]
[1720742653344,28.94,136.22,136.2,0.8546782]
[1720742653538,28.94,136.22,136.21,10.34]
[1720742653737,28.94,136.22,136.21,55.34]
[1720742653959,22.5801,136.31,136.25,10.0]
[1720742654170,28.94,136.27,136.26,45.34]
[1720742654461,28.94,136.29,136.28,10.0]
[1720742654772,28.94,136.29,136.28,45.34]
[1720742654971,28.94,136.29,136.26,55.34]
[1720742655267,36.2783,136.27,136.26,0.34]
[1720742655443,36.2783,136.27,136.22,10.0]
[1720742655636,28.94,136.23,136.22,10.0]
[1720742655941,21.8725,136.32,136.26,10.0]
[1720742656153,28.94,136.27,136.26,10.0]
[1720742656968,28.94,136.27,136.26,55.34]
[1720742657474,28.94,136.29,136.28,10.0]
[1720742657643,28.94,136.29,136.28,65.34]
[1720742657842,28.94,136.29,136.28,55.34]
[1720742658673,28.94,136.29,136.28,45.34]
[1720742658872,28.94,136.29,136.28,0.34]
[1720742659665,28.94,136.29,136.27,45.0]
[1720742659666,28.94,136.29,136.26,10.0]
[1720742659871,7.3367,136.3,136.27,0.34]
[1720742660055,28.94,136.28,136.27,0.34]
[1720742660766,28.94,136.28,136.24,10.0]
[1720742661263,28.94,136.28,136.22,10.0]
[1720742661264,28.94,136.25,136.22,10.0]
[1720742662063,28.94,136.23,136.22,10.0]
[1720742662744,28.94,136.23,136.21,10.0]
[1720742663071,28.94,136.23,136.2,10.8546782]
[1720742663268,28.94,136.21,136.2,0.8546782]
[1720742664568,7.3408,136.23,136.2,0.8546782]
[1720742664767,20.0,136.22,136.2,0.8546782]
[1720742665367,20.0,136.22,136.2,10.8546782]
[1720742665761,20.0,136.22,136.21,0.34]
[1720742666168,20.0,136.22,136.2,0.8546782]
[1720742666365,20.0,136.22,136.2,10.8546782]
[1720742666568,20.0,136.22,136.21,0.34]
[1720742666747,20.0,136.22,136.2,0.8546782]
[1720742666952,20.0,136.22,136.21,0.17]
[1720742667148,20.0,136.22,136.2,0.8546782]
[1720742667352,20.0,136.22,136.2,10.8546782]
[1720742667670,20.0,136.23,136.2,0.8546782]
[1720742667853,27.3401,136.24,136.2,10.8546782]
[1720742668053,20.0,136.24,136.2,0.8546782]
[1720742668275,40.0316,136.21,136.2,0.8546782]
[1720742668481,7.3431,136.19,136.16,10.0]
[1720742669469,7.3423,136.2,136.16,10.0]
[1720742669776,52.69,136.21,136.16,10.0]
[1720742669777,20.0,136.19,136.16,10.0]
[1720742670284,20.0,136.2,136.16,10.0]
[1720742670452,20.0,136.2,136.17,0.34]
[1720742671665,27.3421,136.2,136.17,0.34]
[1720742672168,7.3431,136.19,136.17,0.34]
[1720742673163,7.3431,136.19,136.16,10.0]
[1720742674884,20.0,136.2,136.16,10.0]
[1720742675187,20.0,136.2,136.17,0.34]
[1720742675378,7.3427,136.19,136.16,10.0]
[1720742675579,7.3436,136.18,136.14,10.0]
[1720742675778,7.3436,136.18,136.15,0.34]
[1720742676560,27.3439,136.17,136.13,10.0]
[1720742676760,7.3439,136.17,136.13,10.0]
[1720742677391,7.3433,136.18,136.14,10.0]
[1720742677564,20.0,136.17,136.14,10.0]
[1720742678065,20.0,136.18,136.15,0.17]
[1720742678268,27.3433,136.18,136.13,10.0]
[1720742678470,27.3433,136.18,136.14,45.17]
[1720742678669,7.3439,136.17,136.14,45.17]
[1720742678868,7.3446,136.16,136.12,10.0]
[1720742679086,7.3453,136.15,136.12,10.0]
[1720742679266,7.3455,136.14,136.12,10.0]
[1720742679470,20.0,136.13,136.12,10.0]
[1720742682078,32.69,136.14,136.12,20.0]
[1720742682386,32.69,136.18,136.13,45.34]
[1720742682560,7.343,136.19,136.13,45.34]
[1720742682766,7.3433,136.18,136.13,45.34]
[1720742683093,7.3447,136.16,136.13,45.34]
[1720742684584,29.08,136.14,136.13,45.34]
[1720742685041,29.08,136.14,136.12,10.0]
[1720742685167,40.3566,136.2,136.12,10.0]
[1720742685367,7.63907349,136.22,136.19,10.0]
[1720742685563,7.3381,136.28,136.21,10.0]
[1720742685768,3.02508829,136.32,136.26,10.0]
[1720742686070,29.08,136.27,136.26,10.0]
[1720742686365,29.08,136.27,136.24,10.0]
[1720742686690,29.08,136.25,136.22,10.0]
[1720742686894,29.08,136.23,136.22,10.0]
[1720742687071,29.08,136.23,136.22,55.34]
[1720742687470,29.08,136.23,136.22,45.34]
[1720742687681,29.08,136.23,136.22,0.34]
[1720742687885,29.08,136.23,136.22,10.34]
[1720742688192,29.08,136.23,136.22,0.17]
[1720742688487,29.08,136.23,136.22,0.34]
[1720742688817,7.3398,136.25,136.22,0.34]
[1720742688996,20.0,136.24,136.22,0.34]
[1720742689513,20.0,136.25,136.22,0.34]
[1720742689813,20.0,136.25,136.22,10.34]
[1720742690188,20.0,136.25,136.22,0.34]
[1720742690390,27.3395,136.25,136.22,0.34]
[1720742690987,20.0,136.25,136.22,0.34]
[1720742691212,20.0,136.26,136.22,10.34]
[1720742691517,27.3389,136.26,136.22,10.34]
[1720742691712,7.3397,136.25,136.22,0.34]
[1720742691921,27.34,136.24,136.21,45.0]
[1720742692087,7.3405,136.23,136.2,10.34]
[1720742692293,7.3405,136.23,136.21,0.34]
[1720742692490,27.3401,136.24,136.21,0.34]
[1720742692704,27.3401,136.24,136.16,31.7148]
[1720742692705,32.68,136.23,136.16,31.7148]
[1720742692997,32.68,136.23,136.18,10.0]
[1720742692998,27.3412,136.22,136.18,10.0]
[1720742694121,7.3417,136.21,136.16,41.7148]
[1720742694422,20.0,136.22,136.16,26.5632]
[1720742694800,42.0,136.22,136.16,10.0]
[1720742695016,7.3423,136.2,136.16,10.0]
[1720742695708,20.0,136.22,136.16,10.0]
[1720742696008,7.3416,136.21,136.17,0.17]
[1720742696207,7.3416,136.21,136.17,0.34]
[1720742698216,7.3416,136.21,136.17,0.17]
[1720742698421,7.3416,136.21,136.17,45.34]
[1720742698612,20.0,136.22,136.17,0.17]
[1720742698920,15.8041,136.27,136.2,10.0]
[1720742699221,40.0193,136.26,136.21,0.34]
[1720742699411,7.3393,136.26,136.21,0.34]
[1720742699605,15.8041,136.27,136.21,0.34]
[1720742699822,15.8041,136.27,136.18,10.0]
[1720742700026,7.3397,136.25,136.2,10.0]
[1720742700194,7.3397,136.25,136.21,0.34]
[1720742700525,20.0,136.24,136.21,0.34]
[1720742700701,20.0,136.26,136.21,0.34]
[1720742700906,20.0,136.26,136.2,10.17]
[1720742700907,7.3397,136.25,136.2,10.17]
[1720742701107,20.0,136.24,136.2,10.17]
[1720742701305,7.3401,136.24,136.21,0.34]
[1720742701609,27.3405,136.23,136.2,10.0]
[1720742701802,20.0,136.26,136.21,10.0]
[1720742702004,40.0188,136.27,136.22,10.34]
[1720742702299,40.0188,136.27,136.21,11.46498459]
[1720742702300,7.3395,136.25,136.21,10.0]
[1720742702507,7.3401,136.24,136.2,26.271]
[1720742702815,7.3406,136.23,136.21,0.34]
[1720742703007,7.34,136.24,136.21,0.34]
[1720742703432,7.3396,136.25,136.21,0.34]
[1720742703727,20.0,136.24,136.21,0.34]
[1720742704603,20.0,136.25,136.21,0.34]
[1720742705817,27.3396,136.25,136.21,0.34]
[1720742706127,7.34,136.24,136.21,0.34]
[1720742706801,7.3409,136.23,136.2,10.0]
[1720742707006,20.0,136.22,136.18,10.0]
[1720742707828,20.0,136.22,136.19,10.0]
[1720742708612,29.06,136.2,136.17,20.0]
[1720742708850,36.4024,136.2,136.17,10.0]
[1720742709006,29.06,136.18,136.17,10.0]
[1720742709207,7.3439,136.17,136.12,25.5619]
[1720742709409,29.06,136.13,136.12,25.5619]
[1720742709714,29.06,136.15,136.14,10.0]
[1720742711125,29.06,136.15,136.12,25.5619]
[1720742711331,29.06,136.13,136.12,25.5619]
[1720742712212,29.06,136.13,136.12,10.0]
[1720742712530,29.06,136.13,136.09,10.0]
[1720742712734,29.06,136.1,136.09,10.0]
[1720742713544,29.06,136.13,136.11,10.0]
[1720742714637,7.3451,136.15,136.11,10.0]
[1720742714933,20.0,136.14,136.11,10.0]
[1720742715636,20.0,136.15,136.11,10.0]
[1720742716311,38.3609,136.16,136.1,0.34]
[1720742716643,7.3456,136.14,136.09,10.0]
[1720742716806,20.0,136.13,136.11,10.0]
[1720742717138,20.0,136.16,136.11,10.0]
[1720742717433,7.3448,136.15,136.11,10.0]
[1720742717640,7.348,136.1,136.08,31.4024]
[1720742717809,32.72,136.13,136.08,31.4024]
[1720742718008,32.72,136.13,136.12,10.0]
[1720742718204,18.35085155,136.21,136.12,20.0]
[1720742718205,32.72,136.19,136.12,20.0]
[1720742718431,32.72,136.19,136.14,10.0]
[1720742719016,7.3452,136.15,136.12,20.0]
[1720742719211,7.3443,136.16,136.13,0.17]
[1720742719416,7.3437,136.18,136.13,0.17]
[1720742719643,7.3438,136.17,136.13,0.34]
[1720742719821,7.3432,136.18,136.15,10.0]
[1720742720013,32.72,136.19,136.15,10.0]
[1720742720214,40.0627,136.19,136.15,10.0]
[1720742720408,32.72,136.19,136.17,10.0]
[1720742720613,32.72,136.19,136.16,20.0]
[1720742720834,7.3432,136.18,136.16,20.0]
[1720742721039,7.3432,136.18,136.16,10.0]
[1720742721411,32.72,136.19,136.16,10.0]
[1720742721412,20.0,136.17,136.16,10.0]
[1720742721844,20.0,136.17,136.16,10.17]
[1720742722226,17.9332853,136.22,136.18,20.0]
[1720742722572,40.0606,136.23,136.2,10.0]
[1720742723145,7.3411,136.22,136.2,10.0]
[1720742723513,7.3416,136.21,136.2,10.0]
[1720742723717,40.0608,136.23,136.2,10.0]
[1720742723920,7.34,136.24,136.22,10.0]
[1720742724237,18.3476,136.26,136.22,10.0]
[1720742724238,7.3405,136.23,136.22,10.0]
[1720742724539,7.3403,136.24,136.22,10.0]
[1720742724750,88.25480718,136.29,136.22,10.0]
[1720742724918,88.25480718,136.29,136.21,10.17]
[1720742724919,7.66345876,136.29,136.24,10.0]
[1720742725119,40.38345876,136.29,136.24,10.0]
[1720742725347,32.72,136.29,136.24,10.0]
[1720742725646,32.72,136.29,136.26,10.0]
[1720742725851,7.338,136.28,136.26,10.0]
[1720742726451,7.3383,136.27,136.26,10.0]
[1720742726651,7.3389,136.26,136.25,0.17]
[1720742726845,27.3389,136.26,136.25,0.17]
[1720742727040,7.3389,136.26,136.25,0.17]
[1720742727370,32.72,136.29,136.25,10.17]
[1720742727543,7.3382,136.28,136.25,10.17]
[1720742727737,32.72,136.29,136.25,10.17]
[1720742728134,7.3389,136.26,136.25,10.17]
[1720742728334,20.0,136.26,136.23,10.0]
[1720742728565,20.0,136.25,136.22,10.0]
[1720742728745,7.3401,136.24,136.22,10.0]
[1720742729354,7.3405,136.23,136.22,10.0]
[1720742729546,27.3405,136.23,136.22,10.0]
[1720742729867,20.0,136.23,136.22,10.0]
[1720742730083,27.3405,136.23,136.22,10.0]
[1720742730454,27.3405,136.23,136.22,10.17]
[1720742730641,27.3405,136.23,136.22,10.34]
[1720742731144,27.3405,136.23,136.22,10.0]
[1720742732170,20.0,136.23,136.22,10.0]
[1720742732338,32.72,136.25,136.24,10.0]
[1720742732659,7.3383,136.27,136.26,10.0]
[1720742733048,7.3394,136.25,136.24,10.0]
[1720742733468,7.3401,136.24,136.22,20.17]
[1720742733842,7.3396,136.25,136.22,20.17]
[1720742734063,7.3396,136.25,136.24,10.0]
[1720742734456,27.3396,136.25,136.24,10.17]
[1720742734777,27.3396,136.25,136.24,10.0]
[1720742735082,20.0,136.25,136.22,10.0]
[1720742735269,20.0,136.26,136.22,10.0]
[1720742735459,7.3413,136.22,136.2,20.0]
[1720742735651,20.0,136.26,136.2,20.0]
[1720742735850,20.0,136.28,136.22,10.0]
[1720742736053,32.72,136.25,136.2,10.0]
[1720742736357,20.0,136.24,136.22,10.0]
[1720742736738,29.05,136.23,136.22,10.0]
[1720742736939,7.3416,136.21,136.19,10.0]
[1720742737148,7.3426,136.19,136.18,10.0]
[1720742738176,36.3923,136.2,136.18,10.0]
[1720742738465,29.05,136.2,136.19,0.17]
[1720742738962,29.05,136.2,136.18,10.0]
[1720742739158,29.05,136.2,136.17,10.0]
[1720742739367,36.3932,136.18,136.17,10.0]
[1720742739542,56.3932,136.18,136.14,26.4275]
[1720742739944,36.3948,136.15,136.14,10.0]
[1720742740139,36.3948,136.15,136.11,10.0]
[1720742740140,7.3455,136.14,136.11,10.0]
[1720742740338,29.05,136.12,136.11,10.0]
[1720742740564,29.05,136.12,136.09,42.3865]
[1720742740775,29.05,136.1,136.09,20.0]
[1720742742368,7.3455,136.14,136.13,10.0]
[1720742742545,18.357,136.19,136.13,20.0]
[1720742742749,18.357,136.19,136.15,10.0]
[1720742742750,7.3438,136.17,136.15,10.0]
[1720742743582,7.3443,136.16,136.15,10.0]
[1720742743956,20.0,136.16,136.15,10.17]
[1720742744255,27.3443,136.16,136.15,10.0]
[1720742744448,20.0,136.16,136.15,10.17]
[1720742744650,32.72,136.19,136.17,10.0]
[1720742745056,32.72,136.23,136.21,10.0]
[1720742745584,7.3394,136.25,136.23,10.0]
[1720742746245,81.05561246,136.28,136.21,26.0718]
[1720742746472,81.05561246,136.28,136.21,10.0]
[1720742746672,7.3408,136.23,136.21,10.0]
[1720742747269,7.34,136.24,136.21,10.0]
[1720742747475,7.34,136.24,136.23,10.0]
[1720742747773,27.34,136.24,136.22,0.17]
[1720742747977,88.72569999,136.28,136.21,10.0]
[1720742747978,7.3405,136.23,136.21,10.0]
[1720742748275,7.341,136.22,136.19,10.0]
[1720742748665,7.3416,136.21,136.19,10.0]
[1720742748975,7.3407,136.23,136.19,10.0]
[1720742749272,20.0,136.22,136.19,10.0]
[1720742749660,27.3412,136.22,136.19,10.0]
[1720742751375,7.3421,136.2,136.17,10.0]
[1720742751677,7.3428,136.19,136.17,10.0]
[1720742752275,7.3423,136.2,136.17,10.0]
[1720742752479,7.3417,136.21,136.17,10.0]
[1720742752677,20.0,136.2,136.17,10.0]
[1720742753076,20.0,136.2,136.19,10.0]
[1720742754678,20.0,136.2,136.19,10.34]
[1720742754881,32.72,136.24,136.21,10.0]
[1720742755258,40.0601,136.24,136.21,10.0]
[1720742755459,7.3406,136.23,136.21,10.0]
[1720742755665,32.72,136.24,136.21,10.0]
[1720742755666,7.341,136.22,136.21,10.0]
[1720742755881,7.3416,136.21,136.19,10.34]
[1720742756084,7.3416,136.21,136.2,0.34]
[1720742757357,7.3416,136.21,136.19,10.0]
[1720742757562,7.3421,136.2,136.19,10.0]
[1720742757765,7.3421,136.2,136.19,10.17]
[1720742757982,7.3421,136.2,136.19,10.0]
[1720742758666,7.3421,136.2,136.17,10.0]
[1720742759065,20.0,136.19,136.15,10.0]
[1720742760269,7.344,136.17,136.15,10.0]
[1720742760659,7.344,136.17,136.13,16.0825]
[1720742761369,18.358,136.18,136.13,10.0]
[1720742761558,7.3446,136.16,136.13,10.0]
[1720742761759,20.0,136.15,136.13,10.0]
[1720742761974,20.0,136.17,136.15,10.0]
[1720742763486,7.67259783,136.24,136.21,10.0]
[1720742763698,6.3707,136.28,136.24,10.0]
[1720742763699,32.72,136.26,136.24,10.0]
[1720742763866,40.0589,136.26,136.24,10.0]
[1720742764063,32.72,136.26,136.24,10.0]
[1720742764782,32.72,136.3,136.28,10.0]
[1720742764989,15.4737,136.33,136.28,10.0]
[1720742765198,7.99091246,136.35,136.28,10.0]
[1720742765199,7.3358,136.32,136.28,10.0]
[1720742765568,37.66695155,136.35,136.28,10.0]
[1720742765765,7.3352,136.33,136.28,10.0]
[1720742765966,7.3352,136.33,136.3,10.0]
[1720742766179,7.3358,136.32,136.3,10.0]
[1720742766678,7.3347,136.34,136.32,10.0]
[1720742766881,32.72,136.36,136.32,10.0]
[1720742767374,32.72,136.36,136.34,10.0]
[1720742767602,76.1972,136.43,136.36,10.0]
[1720742767785,94.5223,136.43,136.36,10.0]
[1720742767984,7.3319,136.39,136.36,10.0]
[1720742768660,7.3313,136.4,136.38,10.0]
[1720742769185,7.3319,136.39,136.36,10.0]
[1720742769489,27.3326,136.38,136.36,10.0]
[1720742769694,7.3329,136.37,136.36,10.0]
[1720742769905,20.0,136.38,136.36,10.0]
[1720742769906,27.3326,136.38,136.36,10.0]
[1720742770568,20.0,136.38,136.36,10.0]
[1720742770777,20.0,136.39,136.36,10.0]
[1720742770988,27.3319,136.39,136.36,10.0]
[1720742771197,52.72,136.39,136.36,10.0]
[1720742771373,7.3335,136.36,136.34,10.0]
[1720742771569,27.334,136.35,136.34,10.0]
[1720742772068,20.0,136.35,136.34,10.0]
[1720742772589,20.0,136.35,136.34,10.17]
[1720742772787,20.0,136.35,136.34,10.34]
[1720742773186,7.3325,136.38,136.34,10.34]
[1720742773383,7.332,136.39,136.36,10.0]
[1720742773894,7.67452515,136.42,136.36,10.0]
[1720742774199,29.67452515,136.42,136.35,0.17]
[1720742774498,7.332,136.39,136.35,0.34]
[1720742774671,7.67452515,136.42,136.37,10.0]
[1720742774872,59.03601246,136.43,136.37,10.0]
[1720742775182,7.3314,136.4,136.37,10.0]
[1720742775575,7.331,136.41,136.39,10.0]
[1720742775896,7.3304,136.42,136.39,10.0]
[1720742776302,20.0,136.41,136.39,10.0]
[1720742776777,7.3309,136.41,136.39,10.0]
[1720742776980,32.72,136.43,136.41,10.0]
[1720742777601,7.329,136.45,136.43,10.0]
[1720742778110,29.67099787,136.5,136.43,10.0]
[1720742778275,29.67099787,136.5,136.45,10.0]
[1720742778276,32.72,136.49,136.45,10.0]
[1720742778476,10.67732309,136.5,136.45,10.0]
[1720742778676,7.67099787,136.5,136.45,10.0]
[1720742778992,7.3266,136.49,136.45,20.0]
[1720742779191,7.3273,136.48,136.45,20.0]
[1720742779495,7.3272,136.48,136.45,10.0]
[1720742780071,7.3272,136.48,136.47,10.0]
[1720742780798,7.3256,136.51,136.49,10.0]
[1720742781396,0.8546782,136.54,136.49,10.0]
[1720742781595,0.8546782,136.54,136.5,0.34]
[1720742781778,0.8546782,136.54,136.49,20.0]
[1720742781981,19.1646782,136.54,136.49,10.0]
[1720742782198,7.326,136.5,136.49,10.0]
[1720742782499,20.0,136.5,136.47,10.0]
[1720742782705,20.0,136.49,136.47,20.0]
[1720742783197,7.3255,136.51,136.47,20.0]
[1720742783407,20.0,136.5,136.47,20.0]
[1720742783776,20.0,136.5,136.49,10.0]
[1720742783972,20.0,136.5,136.49,10.34]
[1720742784172,0.8546782,136.54,136.49,10.34]
[1720742784391,37.4758782,136.54,136.45,10.0]
[1720742784702,32.72,136.5,136.42,21.9037]
[1720742784903,32.72,136.44,136.33,10.0]
[1720742785086,32.72,136.39,136.33,10.0]
[1720742785402,7.3315,136.4,136.36,10.0]
[1720742785602,20.0,136.39,136.38,10.0]
[1720742785782,20.0,136.39,136.36,10.0]
[1720742785980,7.3319,136.39,136.36,10.0]
[1720742786182,7.3324,136.38,136.36,10.0]
[1720742786391,51.0465,136.42,136.34,20.0]
[1720742786590,7.3324,136.38,136.34,20.0]
[1720742786976,20.0,136.41,136.36,20.0]
[1720742787197,7.3316,136.4,136.36,20.0]
[1720742787376,20.0,136.39,136.36,10.0]
[1720742787580,7.3324,136.38,136.36,10.0]
[1720742787777,7.3324,136.38,136.34,20.0]
[1720742788105,7.3336,136.36,136.34,10.0]
[1720742788400,20.0,136.35,136.29,10.0]
[1720742788599,22.0,136.34,136.28,10.0]
[1720742788898,20.0,136.33,136.28,10.0]
[1720742789108,27.3351,136.33,136.28,10.0]
[1720742789311,7.3357,136.32,136.28,10.0]
[1720742789911,7.337,136.3,136.27,10.0]
[1720742790401,7.3363,136.31,136.27,10.0]
[1720742790576,20.0,136.3,136.27,10.0]
[1720742791307,27.3366,136.31,136.27,10.0]
[1720742791512,7.3368,136.3,136.26,10.0]
[1720742792006,7.3374,136.29,136.26,10.0]
[1720742792189,20.0,136.31,136.26,10.0]
[1720742792502,20.0,136.32,136.25,10.17]
[1720742792807,20.0,136.32,136.27,10.0]
[1720742793307,20.0,136.32,136.29,10.0]
[1720742793511,27.3357,136.32,136.28,10.0]
[1720742794012,7.3362,136.31,136.28,10.0]
[1720742794305,20.0,136.32,136.29,10.0]
[1720742794604,10.0,136.43,136.35,10.0]
[1720742794779,40.0517,136.4,136.35,10.0]
[1720742795714,32.72,136.4,136.37,10.0]
[1720742795901,20.0,136.39,136.37,10.0]
[1720742797203,32.72,136.4,136.37,10.0]
[1720742798715,20.0,136.39,136.37,10.0]
[1720742799309,7.3328,136.38,136.35,10.0]
[1720742799518,20.0,136.39,136.37,10.0]
[1720742799821,27.3319,136.39,136.35,10.0]
[1720742800282,27.3319,136.39,136.37,10.0]
[1720742800486,20.0,136.39,136.37,10.0]
[1720742801080,27.3324,136.39,136.37,10.0]
[1720742801306,27.3324,136.39,136.34,10.34]
[1720742801307,27.3321,136.39,136.35,10.0]
[1720742801733,20.0,136.39,136.35,10.0]
[1720742802217,20.0,136.39,136.37,10.0]
[1720742802524,20.0,136.39,136.34,10.34]
[1720742802525,20.0,136.39,136.35,10.0]
[1720742803031,27.3323,136.39,136.35,10.0]
[1720742803835,7.333,136.37,136.35,10.0]
[1720742804337,7.3325,136.38,136.35,10.0]
[1720742804627,20.0,136.37,136.35,10.0]
[1720742805036,7.3326,136.38,136.35,10.0]
[1720742805331,20.0,136.37,136.35,10.0]
[1720742805797,20.0,136.39,136.37,10.0]
[1720742805995,20.0,136.39,136.35,10.0]
[1720742806222,27.3323,136.39,136.37,10.0]
[1720742806609,20.0,136.39,136.37,10.0]
[1720742807700,20.0,136.39,136.36,10.0]
[1720742807901,20.0,136.39,136.37,10.0]
[1720742808124,20.0,136.39,136.36,10.0]
[1720742808310,7.3325,136.38,136.36,10.0]
[1720742808506,20.0,136.39,136.36,10.0]
[1720742808736,27.3321,136.39,136.37,10.0]
[1720742809026,27.3321,136.39,136.33,20.0]
[1720742809027,7.3331,136.37,136.33,20.0]
[1720742809210,20.0,136.39,136.33,10.0]
[1720742809211,7.3341,136.35,136.33,10.0]
[1720742809419,27.3346,136.34,136.3,10.0]
[1720742810102,20.0,136.34,136.33,10.0]
[1720742810300,32.72,136.36,136.33,10.0]
[1720742810506,27.334,136.35,136.31,10.0]
[1720742810738,7.3351,136.33,136.31,10.0]
[1720742810902,7.3356,136.32,136.31,10.0]
[1720742811103,7.3353,136.33,136.31,10.0]
[1720742811299,7.3347,136.34,136.29,10.0]
[1720742811532,20.0,136.33,136.31,10.0]